bitfinex/quotes_ETHUSD_20230116
["timestamp","ask_amount","ask_price","bid_price","bid_amount"]
[1673860556226,1.505,1543.0,1542.9,6.48172]
[1673860556688,1.505,1543.0,1542.9,0.00042]
[1673860557287,4.005,1543.0,1542.9,0.00042]
[1673860558633,31.016,1543.1,1542.9,0.00042]
[1673860558634,31.016,1543.1,1542.9,19.44432]
[1673860558862,10.8611,1543.1,1542.9,22.036897]
[1673860559433,10.8611,1543.1,1542.9,15.555597]
[1673860561312,10.8611,1543.1,1543.0,0.00042]
[1673860563111,10.8611,1543.1,1543.0,6.4813]
[1673860564053,29.5364,1543.3,1543.0,6.4813]
[1673860564278,33.6109344,1543.3,1543.0,6.4813]
[1673860565172,29.5364,1543.3,1543.0,6.4813]
[1673860565382,0.4863,1543.2,1543.0,6.4813]
[1673860565625,29.5364,1543.3,1543.0,6.4813]
[1673860566572,29.5364,1543.3,1543.0,0.00042]
[1673860566953,1.508,1543.2,1543.0,0.00042]
[1673860569504,1.2998,1543.1,1543.0,0.00042]
[1673860569729,22.77185,1543.1,1543.0,0.00042]
[1673860569886,30.6139177,1543.1,1543.0,0.00042]
[1673860570359,18.79139,1543.1,1543.0,0.00042]
[1673860570758,12.31093,1543.1,1543.0,0.00042]
[1673860577177,10.79793,1543.1,1543.0,0.00042]
[1673860577605,4.31747,1543.1,1543.0,0.00042]
[1673860577798,4.16667,1543.1,1543.0,0.00042]
[1673860579054,4.16667,1543.1,1542.8,6.48168]
[1673860579055,4.16667,1543.1,1542.8,4.67364765]
[1673860579268,0.03137,1543.1,1542.8,11.15536765]
[1673860579446,0.03137,1543.1,1542.8,19.13908765]
[1673860579665,0.03137,1543.1,1543.0,19.44264]
[1673860579879,21.0581,1543.3,1543.0,23.152904]
[1673860580070,21.0581,1543.3,1543.0,21.639904]
[1673860586595,10.45182404,1543.4,1543.0,21.639904]
[1673860586960,10.45182404,1543.4,1543.1,0.23]
[1673860587130,0.15372404,1543.4,1543.2,19.44012]
[1673860587486,0.15372404,1543.4,1543.2,21.407132]
[1673860589953,0.15372404,1543.4,1543.3,0.3581013]
[1673860590415,0.15372404,1543.4,1543.3,13.3173413]
[1673860595624,0.15372404,1543.4,1543.3,0.3581013]
[1673860595625,1.30272404,1543.4,1543.3,0.3581013]
[1673860595875,1.44836885,1543.4,1543.3,0.3581013]
[1673860596574,0.29936885,1543.4,1543.3,0.3581013]
[1673860596781,0.15372404,1543.4,1543.3,0.3581013]
[1673860596993,0.15372404,1543.4,1543.3,6.8377213]
[1673860597833,0.15372404,1543.4,1543.3,20.0269613]
[1673860598937,0.15372404,1543.4,1543.3,21.5399613]
[1673860600037,0.15372404,1543.4,1543.3,19.7969613]
[1673860600184,1.30272404,1543.4,1543.3,19.7969613]
[1673860600374,0.29936885,1543.4,1543.3,19.7969613]
[1673860600714,0.15372404,1543.4,1543.3,19.7969613]
[1673860601132,1.30272404,1543.4,1543.3,19.7969613]
[1673860601949,0.15372404,1543.4,1543.3,19.7969613]
[1673860602200,1.30272404,1543.4,1543.3,19.7969613]
[1673860602883,0.15372404,1543.4,1543.3,19.7969613]
[1673860603344,1.2993822,1543.4,1543.3,19.7969613]
[1673860604181,1.44469282,1543.4,1543.3,19.7969613]
[1673860604356,1.44469282,1543.4,1543.0,18.6157]
[1673860604357,19.438,1543.3,1542.7,0.00742]
[1673860604566,14.36812758,1543.2,1542.7,0.00742]
[1673860604781,5.49039758,1543.1,1542.7,6.48928]
[1673860605023,0.51777,1543.0,1542.7,0.00742]
[1673860605243,0.03137,1542.9,1542.7,0.00742]
[1673860605430,0.4864,1542.8,1542.7,0.00742]
[1673860605642,0.969547,1542.8,1542.7,0.00742]
[1673860605859,2.482547,1542.8,1542.7,0.00742]
[1673860608612,1.996147,1542.8,1542.7,0.00742]
[1673860610930,1.996147,1542.8,1542.7,6.48956]
[1673860611243,0.03137,1542.8,1542.7,12.9717]
[1673860613120,0.03137,1542.8,1542.7,19.45384]
[1673860616178,10.2887,1543.0,1542.7,19.45384]
[1673860619997,11.8017,1543.0,1542.7,12.9717]
[1673860620217,1.18017,1542.9,1542.7,12.9717]
[1673860622038,2.68817,1542.9,1542.7,0.00742]
[1673860622189,1.9994,1542.8,1542.7,0.00742]
[1673860623455,2.03077,1542.8,1542.7,0.00742]
[1673860623658,4.844924,1542.8,1542.7,0.00042]
[1673860625176,3.331924,1542.8,1542.7,0.00042]
[1673860625412,0.03137,1542.8,1542.7,6.48256]
[1673860626290,0.03137,1542.8,1542.7,12.9647]
[1673860629071,0.03137,1542.8,1542.7,12.96428]
[1673860630441,1.18037,1542.8,1542.6,6.48222]
[1673860630590,1.18037,1542.8,1542.5,13.0213912]
[1673860630591,1.18037,1542.8,1542.5,6.5387212]
[1673860630806,0.118037,1542.7,1542.5,6.5387212]
[1673860633037,0.118037,1542.7,1542.5,13.0217012]
[1673860634163,0.118037,1542.7,1542.5,19.5046812]
[1673860634374,3.68037,1542.8,1542.5,19.5046812]
[1673860635635,0.03137,1542.8,1542.5,19.5046812]
[1673860646197,0.0283837,1542.8,1542.5,19.5046812]
[1673860646658,10.2887,1543.0,1542.6,0.23]
[1673860646851,10.2887,1543.0,1542.7,25.92826]
[1673860647020,10.2887,1543.0,1542.7,28.544086]
[1673860647561,19.6744,1543.1,1542.7,28.544086]
[1673860651975,10.7378,1543.2,1542.7,28.544086]
[1673860652901,10.7378,1543.2,1542.8,0.23]
[1673860653108,10.7378,1543.2,1542.9,25.92484]
[1673860653323,21.1069,1543.3,1543.0,2.592484]
[1673860653533,21.1069,1543.3,1543.1,12.96092]
[1673860654055,12.0431822,1543.4,1543.1,19.44138]
[1673860654800,2.1496822,1543.4,1543.1,19.44138]
[1673860656056,1.6633822,1543.4,1543.1,19.44138]
[1673860657848,1.5,1543.3,1543.1,12.96092]
[1673860658167,0.15,1543.2,1543.1,12.96092]
[1673860660384,9.29204,1543.2,1542.8,6.48145]
[1673860660619,1.9993,1543.1,1542.7,6.48189]
[1673860660831,0.19993,1543.0,1542.7,6.48189]
[1673860663261,1.504,1542.8,1542.5,13.0215412]
[1673860663432,1.504,1542.8,1542.6,6.48255]
[1673860666782,1.504,1542.8,1542.5,6.5388012]
[1673860666993,38.08101,1542.9,1542.5,6.5388012]
[1673860667234,3.808101,1542.8,1542.5,6.5388012]
[1673860669250,5.321101,1542.8,1542.5,6.5388012]
[1673860669569,5.807501,1542.8,1542.5,6.5388012]
[1673860669741,5.838871,1542.8,1542.5,6.5388012]
[1673860669957,5.352471,1542.8,1542.5,6.5388012]
[1673860670184,0.5352471,1542.7,1542.5,6.5388012]
[1673860671040,5.352471,1542.8,1542.5,6.5388012]
[1673860671369,3.839471,1542.8,1542.5,19.5047612]
[1673860672569,0.03137,1542.8,1542.5,19.5047612]
[1673860676554,0.02788787,1542.8,1542.5,19.5047612]
[1673860677019,30.0867,1542.9,1542.5,19.5047612]
[1673860679184,31.5847,1542.9,1542.5,19.5047612]
[1673860679352,32.0711,1542.9,1542.5,19.5047612]
[1673860679511,3.20711,1542.8,1542.5,19.5047612]
[1673860679721,32.0711,1542.9,1542.5,19.5047612]
[1673860681343,31.5847,1542.9,1542.5,19.5047612]
[1673860683347,30.0867,1542.9,1542.5,19.5047612]
[1673860687651,31.5867,1542.9,1542.5,19.5047612]
[1673860687862,0.4864,1542.8,1542.5,19.5047612]
[1673860688056,3.75321276,1542.8,1542.5,19.5047612]
[1673860691192,5.25821276,1542.8,1542.5,19.5047612]
[1673860692563,5.25821276,1542.8,1542.5,19.50180683]
[1673860695851,3.75321276,1542.8,1542.5,19.50180683]
[1673860696827,0.03137,1542.7,1542.5,19.50180683]
[1673860697043,0.40982828,1542.7,1542.5,19.50180683]
[1673860701116,0.40982828,1542.7,1542.5,13.01882683]
[1673860703148,0.03137,1542.7,1542.5,19.50180683]
[1673860713480,0.03137,1542.7,1542.5,13.01882683]
[1673860714816,0.03137,1542.7,1542.5,19.50180683]
[1673860717299,0.02748571,1542.7,1542.5,19.50180683]
[1673860718923,0.02748571,1542.7,1542.6,20.75668]
[1673860719099,0.02748571,1542.7,1542.6,23.70628201]
[1673860719716,0.02748571,1542.7,1542.6,23.47628201]
[1673860722352,0.02748571,1542.7,1542.6,22.39728201]
[1673860722696,0.02748571,1542.7,1542.6,19.44768]
[1673860723301,1.17648571,1542.7,1542.6,19.44768]
[1673860723750,0.02748571,1542.7,1542.6,19.44768]
[1673860730186,0.02748571,1542.7,1542.6,19.67859087]
[1673860731703,0.02748571,1542.7,1542.6,6.71347087]
[1673860732077,1.17648571,1542.7,1542.6,0.23091087]
[1673860732406,1.29413428,1542.7,1542.6,0.23091087]
[1673860732707,0.14513428,1542.7,1542.6,6.71347087]
[1673860732875,0.02748571,1542.7,1542.6,6.71347087]
[1673860733089,0.02748571,1542.7,1542.6,13.19603087]
[1673860735614,0.02748571,1542.7,1542.6,19.67859087]
[1673860741475,0.02543432,1542.7,1542.6,19.67859087]
[1673860746418,10.23733432,1542.9,1542.6,19.67859087]
[1673860746633,12.04767554,1542.9,1542.6,19.67859087]
[1673860751933,10.23733432,1542.9,1542.6,20.31691752]
[1673860752585,0.004,1543.0,1542.6,21.82691752]
[1673860752792,0.004,1543.0,1542.8,25.92688]
[1673860759034,0.004,1543.0,1542.8,6.48172]
[1673860759388,0.55030276,1543.0,1542.8,6.48172]
[1673860759610,0.004,1543.0,1542.8,6.48172]
[1673860762930,0.004,1543.0,1542.8,12.96344]
[1673860769728,0.004,1543.0,1542.8,6.48172]
[1673860771107,0.004,1543.0,1542.8,7.78172]
[1673860772675,0.004,1543.0,1542.8,1.3]
[1673860773294,0.55030276,1543.0,1542.8,1.3]
[1673860776445,0.55030276,1543.0,1542.8,7.78168]
[1673860776670,0.00071638,1543.0,1542.8,7.78168]
[1673860778228,0.00071638,1543.0,1542.8,1.3]
[1673860783641,0.00071638,1543.0,1542.8,20.74513]
[1673860785793,0.00071638,1543.0,1542.8,19.44513]
[1673860787416,0.00071638,1543.0,1542.8,6.48169]
[1673860788017,0.15168802,1543.0,1542.8,6.48169]
[1673860790458,0.00071638,1543.0,1542.8,12.96341]
[1673860791326,0.00071638,1543.0,1542.8,19.44513]
[1673860792707,0.00071638,1543.0,1542.8,12.96341]
[1673860793544,0.51767,1543.2,1542.8,12.96341]
[1673860793903,0.03137,1543.2,1542.8,12.96341]
[1673860794113,0.03137,1543.2,1542.8,21.979227]
[1673860794359,11.96992839,1543.2,1542.8,12.96341]
[1673860794746,6.51142,1543.2,1542.8,12.96341]
[1673860795839,1.504,1543.1,1542.8,12.96341]
[1673860796453,1.504,1543.1,1542.8,6.48169]
[1673860797075,1.504,1543.1,1542.8,12.96341]
[1673860797284,1.504,1543.1,1542.8,16.145696]
[1673860797494,1.504,1543.1,1542.8,12.96341]
[1673860798790,1.504,1543.1,1542.8,6.48169]
[1673860801066,1.509,1543.0,1542.6,6.71786087]
[1673860801272,16.78912758,1543.0,1542.6,6.71786087]
[1673860801533,11.3301,1543.0,1542.6,6.71786087]
[1673860801698,9.8211,1543.0,1542.6,22.43134664]
[1673860809292,0.03137,1543.1,1543.0,7.56264334]
[1673860810331,1.509,1543.2,1543.0,7.56264334]
[1673860810587,32.9157,1543.3,1543.0,7.56264334]
[1673860810754,3.29157,1543.2,1543.0,0.00276334]
[1673860814327,3.28766398,1543.2,1543.0,0.00276334]
[1673860817703,23.21325015,1543.2,1543.0,0.00276334]
[1673860818096,23.24462015,1543.2,1543.0,0.00276334]
[1673860818356,2.32446201,1543.1,1543.0,0.00276334]
[1673860818685,8.80492201,1543.1,1543.0,0.00276334]
[1673860821986,14.26394959,1543.1,1543.0,0.00276334]
[1673860822194,24.74440959,1543.1,1543.0,0.00276334]
[1673860822492,24.77577959,1543.1,1543.0,0.00276334]
[1673860822613,25.26217959,1543.1,1543.0,0.00276334]
[1673860822826,30.06205201,1543.1,1543.0,0.00276334]
[1673860823306,2.50226572,1543.0,1542.6,13.19984087]
[1673860823614,1.75922657,1542.9,1542.6,6.71750087]
[1673860824139,1.75922657,1542.9,1542.6,6.48659]
[1673860827085,0.25022657,1542.9,1542.6,6.48659]
[1673860829771,5.70925415,1542.9,1542.6,6.48659]
[1673860830024,1.5,1542.7,1542.6,0.00442]
[1673860832123,7.98214,1542.7,1542.5,0.05310683]
[1673860832333,8.01351,1542.7,1542.5,0.05310683]
[1673860833413,4.007,1542.6,1542.5,0.05310683]
[1673860833637,17.45862,1542.6,1542.5,0.00010683]
[1673860833915,19.369333,1542.6,1542.5,0.00010683]
[1673860834133,12.886773,1542.6,1542.5,0.00010683]
[1673860834323,6.404213,1542.6,1542.5,0.00010683]
[1673860834756,16.933113,1542.6,1542.5,0.00010683]
[1673860836952,21.908673,1542.6,1542.5,0.00010683]
[1673860837179,28.391233,1542.6,1542.5,0.00010683]
[1673860837369,34.873793,1542.6,1542.5,0.00010683]
[1673860838165,34.905163,1542.6,1542.5,0.00010683]
[1673860838694,12.957483,1542.6,1542.5,0.00010683]
[1673860839592,19.440043,1542.6,1542.5,0.00010683]
[1673860841567,22.426543,1542.6,1542.5,0.00010683]
[1673860842572,28.909103,1542.6,1542.5,0.00010683]
[1673860847679,12.957483,1542.6,1542.5,0.00010683]
[1673860847884,10.56027,1542.6,1542.5,0.00010683]
[1673860851375,10.56027,1542.6,1542.5,7.56208683]
[1673860851728,10.5289,1542.6,1542.5,6.48308683]
[1673860851914,20.2881,1542.7,1542.5,6.48308683]
[1673860852507,13.70172541,1542.8,1542.5,6.48308683]
[1673860853185,1.37017254,1542.7,1542.5,6.48308683]
[1673860853396,1.37017254,1542.7,1542.5,0.00010683]
[1673860853397,6.48256,1542.6,1542.5,0.00010683]
[1673860854041,8.98256,1542.6,1542.5,0.00010683]
[1673860854200,19.12696,1542.6,1542.5,0.00010683]
[1673860857451,25.60952,1542.6,1542.5,0.00010683]
[1673860857662,30.08796725,1542.6,1542.5,0.00010683]
[1673860857906,30.57446725,1542.6,1542.5,0.00010683]
[1673860861597,24.09190725,1542.6,1542.5,0.00010683]
[1673860862192,23.60540725,1542.6,1542.5,0.00010683]
[1673860865564,17.12284725,1542.6,1542.5,0.00010683]
[1673860866193,12.64044039,1542.6,1542.5,0.00010683]
[1673860866406,12.64044039,1542.6,1542.5,1.07910683]
[1673860866636,2.49604039,1542.6,1542.5,1.07910683]
[1673860867021,2.49604039,1542.6,1542.5,0.00010683]
[1673860869382,2.5,1542.7,1542.5,6.48308683]
[1673860869908,10.7962,1542.8,1542.5,12.96606683]
[1673860870106,10.7962,1542.8,1542.5,14.91659463]
[1673860871032,10.7962,1542.8,1542.5,21.39957463]
[1673860871257,10.7962,1542.8,1542.6,1.495]
[1673860871587,10.7962,1542.8,1542.7,19.44642]
[1673860871796,20.6744,1542.9,1542.7,19.44642]
[1673860871963,20.6744,1542.9,1542.7,21.540562]
[1673860872409,9.83366572,1543.0,1542.7,21.540562]
[1673860876347,9.8383821,1543.0,1542.7,19.44642]
[1673860883177,9.8383821,1543.0,1542.7,19.44374758]
[1673860891030,9.8383821,1543.0,1542.9,19.4439]
[1673860891207,0.0049821,1543.0,1542.9,19.4439]
[1673860896780,20.5582,1543.2,1542.9,20.9399]
[1673860896781,0.08828377,1543.2,1542.9,20.9399]
[1673860897029,0.1503822,1543.4,1543.0,18.05938]
[1673860897195,0.1503822,1543.4,1543.0,20.94254709]
[1673860897402,0.1503822,1543.4,1543.1,0.23]
[1673860897616,0.1503822,1543.4,1543.2,25.92016]
[1673860897885,0.1503822,1543.4,1543.3,3.0]
[1673860898190,0.1503822,1543.4,1543.3,19.939252]
[1673860899207,0.1503822,1543.4,1543.3,18.433252]
[1673860899423,0.1503822,1543.4,1543.3,15.433252]
[1673860900031,0.1503822,1543.4,1543.3,16.933252]
[1673860905000,0.1503822,1543.4,1543.3,19.933252]
[1673860906055,0.1503822,1543.4,1543.3,20.31654464]
[1673860907913,0.1503822,1543.4,1543.3,26.79616464]
[1673860908668,0.1503822,1543.4,1543.3,26.412872]
[1673860915006,0.1503822,1543.4,1543.3,26.182872]
[1673860915178,0.1503822,1543.4,1543.3,23.93886]
[1673860916388,0.1503822,1543.4,1543.3,12.95924]
[1673860916389,1.2993822,1543.4,1543.3,12.95924]
[1673860916534,1.2993822,1543.4,1543.3,6.47962]
[1673860916745,0.1503822,1543.4,1543.3,12.95924]
[1673860917268,0.14805858,1543.4,1543.3,12.95924]
[1673860917597,0.14805858,1543.4,1543.3,19.43886]
[1673860918579,0.14805858,1543.4,1543.3,19.66886]
[1673860919010,0.14805858,1543.4,1543.3,12.95924]
[1673860919898,0.14805858,1543.4,1543.3,19.66886]
[1673860921303,1.29705858,1543.4,1543.3,12.95924]
[1673860921625,0.29313684,1543.4,1543.3,12.95924]
[1673860921839,0.63435858,1543.4,1543.3,12.95924]
[1673860922040,0.14805858,1543.4,1543.3,12.95924]
[1673860922214,0.14805858,1543.4,1543.3,19.43886]
[1673860922440,0.14805858,1543.4,1543.3,19.66886]
[1673860924151,0.14805858,1543.4,1543.3,20.96886]
[1673860924368,0.14805858,1543.4,1543.3,23.864318]
[1673860924988,0.14805858,1543.4,1543.3,25.361318]
[1673860925195,0.14805858,1543.4,1543.3,28.361318]
[1673860926419,0.14805858,1543.4,1543.3,25.23586]
[1673860928061,0.14805858,1543.4,1543.3,25.46586]
[1673860930253,0.15372404,1543.5,1543.3,25.46586]
[1673860930410,0.15372404,1543.5,1543.4,24.1766]
[1673860930831,0.15183408,1543.6,1543.4,24.1766]
[1673860931054,0.15183408,1543.6,1543.5,23.363]
[1673860931359,4.08e-06,1543.6,1543.5,26.593]
[1673860932046,4.08e-06,1543.6,1543.5,27.893]
[1673860938188,4.08e-06,1543.6,1543.5,26.384]
[1673860953004,4.08e-06,1543.6,1543.5,23.96634]
[1673860953538,4.08e-06,1543.6,1543.5,20.73634]
[1673860953968,1.30286916,1543.7,1543.6,0.00263782]
[1673860954170,1.30286916,1543.7,1543.6,6.48099782]
[1673860954528,1.78906916,1543.7,1543.6,6.48099782]
[1673860954742,2.246912,1543.7,1543.6,6.48099782]
[1673860954951,2.246912,1543.7,1543.6,7.78099782]
[1673860956800,1.097912,1543.7,1543.6,7.78099782]
[1673860957219,0.64006916,1543.7,1543.6,14.25935782]
[1673860957659,0.64006916,1543.7,1543.6,20.73771782]
[1673860958117,0.15386916,1543.7,1543.6,20.73771782]
[1673860962513,0.15386916,1543.7,1543.6,20.96771782]
[1673860965056,0.15386916,1543.7,1543.6,20.73771782]
[1673860965431,1.30286916,1543.7,1543.6,14.25935782]
[1673860965627,1.561192,1543.7,1543.6,14.25935782]
[1673860965842,3.070192,1543.7,1543.6,1.30263782]
[1673860966315,3.556392,1543.7,1543.6,1.30263782]
[1673860968294,6.056392,1543.7,1543.6,1.30263782]
[1673860970695,6.056392,1543.7,1543.6,7.78099782]
[1673860972623,2.407392,1543.7,1543.6,7.78099782]
[1673860973472,1.921192,1543.7,1543.6,7.78099782]
[1673860981661,0.15055201,1543.7,1543.6,14.25935782]
[1673860983847,0.15055201,1543.7,1543.6,12.95935782]
[1673860984500,0.15055201,1543.7,1543.6,19.43771782]
[1673860988051,0.15055201,1543.7,1543.6,19.43499732]
[1673860990446,0.15055201,1543.7,1543.6,12.95663732]
[1673860991186,0.15055201,1543.7,1543.6,19.43499732]
[1673860992123,0.15055201,1543.7,1543.6,19.66499732]
[1673860992354,0.15055201,1543.7,1543.6,22.40934005]
[1673860997412,0.15055201,1543.7,1543.6,19.66499732]
[1673861006998,0.15055201,1543.7,1543.6,12.95663732]
[1673861009638,0.15055201,1543.7,1543.6,6.47827732]
[1673861010802,0.63675201,1543.7,1543.6,6.47827732]
[1673861011073,0.14711031,1543.7,1543.6,6.47827732]
[1673861011351,0.33846726,1543.7,1543.6,6.47827732]
[1673861012034,0.33846726,1543.7,1543.5,14.25695]
[1673861012925,0.33846726,1543.7,1543.5,7.77843]
[1673861013683,0.82466726,1543.7,1543.5,1.3]
[1673861013831,3.32466726,1543.7,1543.5,1.3]
[1673861014041,0.33246673,1543.6,1543.5,1.3]
[1673861015033,1.84146673,1543.6,1543.5,1.3]
[1673861015617,0.81866673,1543.6,1543.5,1.3]
[1673861015819,0.33246673,1543.6,1543.5,1.3]
[1673861018787,0.33846726,1543.7,1543.5,14.25756]
[1673861018972,0.14711031,1543.7,1543.5,14.25756]
[1673861019410,0.14711031,1543.7,1543.5,1.3]
[1673861025123,2.64711031,1543.7,1543.5,1.3]
[1673861025493,4.15511031,1543.7,1543.5,1.3]
[1673861026017,10.63305031,1543.7,1543.5,1.3]
[1673861026268,2.57130503,1543.6,1543.5,1.3]
[1673861026486,9.04966503,1543.6,1543.5,1.3]
[1673861027622,15.52802503,1543.6,1543.5,1.3]
[1673861028219,16.01422503,1543.6,1543.5,1.3]
[1673861028927,22.49258503,1543.6,1543.5,1.3]
[1673861031097,1.04780452,1543.5,1543.4,0.00042]
[1673861031322,28.62540348,1543.5,1543.4,0.00042]
[1673861031637,29.11160348,1543.5,1543.4,0.00042]
[1673861032167,28.62540348,1543.5,1543.4,0.00042]
[1673861032341,22.14662348,1543.5,1543.4,0.00042]
[1673861034791,15.66784348,1543.5,1543.4,0.00042]
[1673861035851,14.16784348,1543.5,1543.2,6.47998]
[1673861035997,11.81380452,1543.5,1543.2,6.47998]
[1673861036471,32.75817452,1543.5,1543.0,6.48067]
[1673861036685,4.008,1543.4,1543.0,6.48067]
[1673861036992,10.48739,1543.4,1543.0,6.48067]
[1673861038354,8.97939,1543.4,1543.0,6.48067]
[1673861038567,12.50839845,1543.4,1543.0,6.48067]
[1673861040229,18.32391452,1543.5,1543.0,19.44243]
[1673861041105,11.84513452,1543.5,1543.0,19.44243]
[1673861044046,26.29569452,1543.5,1543.0,19.44243]
[1673861044263,36.5334613,1543.5,1542.9,12.96256]
[1673861044419,2.5,1543.4,1542.9,12.96256]
[1673861044634,6.72968,1543.3,1542.9,12.96256]
[1673861046788,0.25,1543.3,1542.9,12.96256]
[1673861047097,2.5,1543.4,1542.9,19.44386]
[1673861053303,15.45844,1543.4,1542.9,12.96256]
[1673861053514,8.97922,1543.4,1542.9,19.44386]
[1673861053833,11.75817545,1543.4,1542.9,19.44386]
[1673861055509,11.75817545,1543.4,1542.9,12.96256]
[1673861055683,18.23739545,1543.4,1542.9,12.96256]
[1673861057179,18.26872545,1543.4,1542.9,12.96256]
[1673861058130,29.52373223,1543.4,1542.9,6.48128]
[1673861058455,9.43225322,1543.3,1542.9,6.48128]
[1673861058673,27.15826989,1543.3,1542.8,0.05901443]
[1673861058978,2.02563,1543.2,1542.8,0.05901443]
[1673861059216,6.48054,1543.1,1542.8,0.05901443]
[1673861059340,2.5,1543.0,1542.8,0.05901443]
[1673861059550,1.294,1542.9,1542.8,0.05901443]
[1673861060211,1.29034502,1542.9,1542.8,0.05901443]
[1673861062390,2.5,1543.0,1542.8,0.05901443]
[1673861062845,31.8672,1543.1,1542.8,0.05901443]
[1673861064126,13.3227,1543.1,1542.8,6.54069443]
[1673861068868,10.8227,1543.1,1542.8,19.50413443]
[1673861069174,10.3363,1543.1,1542.8,19.50413443]
[1673861069396,10.3363,1543.1,1542.8,22.10890189]
[1673861072227,10.3363,1543.1,1542.8,19.50413443]
[1673861074433,0.51763,1543.2,1542.8,19.50413443]
[1673861074636,0.03133,1543.2,1542.8,19.50413443]
[1673861074845,0.03133,1543.2,1542.8,37.27583443]
[1673861075856,0.03133,1543.2,1542.8,38.78483443]
[1673861076067,0.03133,1543.2,1542.9,3.87848344]
[1673861076433,0.03133,1543.2,1543.0,12.96176]
[1673861080542,0.03133,1543.2,1543.0,19.44264]
[1673861080770,1.9992,1543.6,1543.0,19.44264]
[1673861080982,10.5609,1543.5,1543.0,19.44264]
[1673861081201,10.5609,1543.5,1543.1,1.944264]
[1673861081386,10.5609,1543.5,1543.2,19.43985]
[1673861082523,10.5609,1543.5,1543.0,18.50571]
[1673861082524,18.54868,1543.5,1543.0,18.50571]
[1673861082736,1.504,1543.4,1543.0,6.48063]
[1673861082944,0.4863,1543.3,1543.0,6.48063]
[1673861083167,3.83326,1543.3,1543.0,6.48063]
[1673861083422,5.34026,1543.3,1542.9,15.96235]
[1673861083579,5.34026,1543.3,1542.9,19.44343]
[1673861083961,15.15986,1543.3,1542.9,19.44343]
[1673861084842,15.15623354,1543.3,1542.9,19.44343]
[1673861085087,1.51562335,1543.2,1542.9,19.44343]
[1673861090103,1.51562335,1543.2,1542.8,24.31215443]
[1673861090568,1.51562335,1543.2,1542.8,30.79365443]
[1673861091914,2.5,1543.1,1542.8,0.05901443]
[1673861092241,20.36442,1543.1,1542.8,0.05901443]
[1673861092555,2.036442,1543.0,1542.8,0.05901443]
[1673861096859,13.28823878,1543.0,1542.8,0.05901443]
[1673861097190,8.9813,1542.9,1542.8,0.05901443]
[1673861097862,15.49393,1542.9,1542.8,0.05901443]
[1673861098559,9.01263,1542.9,1542.8,0.05901443]
[1673861098771,14.77260388,1542.9,1542.8,0.05901443]
[1673861100204,14.77260388,1542.9,1542.8,6.54073443]
[1673861100822,9.94233,1542.9,1542.8,6.54073443]
[1673861101029,0.03133,1542.9,1542.8,13.02245443]
[1673861101238,22.1468,1543.1,1542.8,19.50417443]
[1673861101498,2.5,1543.1,1542.8,19.50417443]
[1673861106439,12.411,1543.2,1542.8,19.50417443]
[1673861106749,12.411,1543.2,1543.0,6.48088]
[1673861116588,12.411,1543.2,1542.9,6.48098]
[1673861116797,12.411,1543.2,1542.8,31.49861443]
[1673861119495,18.92245,1543.2,1542.8,25.01692443]
[1673861120779,9.75073611,1543.1,1542.8,0.05901443]
[1673861120993,0.97507361,1543.0,1542.8,0.05901443]
[1673861121315,11.09140361,1543.0,1542.8,0.05901443]
[1673861121637,17.57228361,1543.0,1542.8,0.05901443]
[1673861122052,19.08128361,1543.0,1542.8,0.05901443]
[1673861125846,19.56768361,1543.0,1542.8,0.05901443]
[1673861126061,1.95676836,1542.9,1542.8,0.05901443]
[1673861135452,11.09140361,1543.0,1542.8,0.05901443]
[1673861135622,11.09140361,1543.0,1542.8,6.54073443]
[1673861135839,11.09140361,1543.0,1542.8,13.02245443]
[1673861137550,10.11633,1543.0,1542.8,13.02245443]
[1673861140645,10.11633,1543.0,1542.8,6.54073443]
[1673861149195,10.11633,1543.0,1542.8,19.50417443]
[1673861149826,10.11633,1543.0,1542.8,13.02245443]
[1673861150241,10.11633,1543.0,1542.8,19.50417443]
[1673861154908,10.11633,1543.0,1542.8,13.02245443]
[1673861155293,11.127963,1543.0,1542.8,13.02245443]
[1673861160125,10.11633,1543.0,1542.8,13.02245443]
[1673861161758,0.03133,1543.0,1542.8,19.50417443]
[1673861162431,10.5185,1543.2,1542.8,19.50417443]
[1673861177715,0.07697377,1543.0,1542.8,19.50417443]
[1673861177935,0.07697377,1543.0,1542.8,24.10353289]
[1673861179163,0.07697377,1543.0,1542.9,0.00442]
[1673861179371,0.07697377,1543.0,1542.9,6.48572]
[1673861179581,0.07697377,1543.0,1542.9,19.44832]
[1673861183244,0.07414742,1543.0,1542.9,19.44832]
[1673861183453,0.07414742,1543.0,1542.9,22.50716129]
[1673861186589,1.11814742,1543.0,1542.9,19.44832]
[1673861188375,0.07414742,1543.0,1542.9,19.44832]
[1673861197044,1.11814742,1543.0,1542.9,19.44832]
[1673861197692,0.07414742,1543.0,1542.9,19.44832]
[1673861198114,1.11814742,1543.0,1542.9,19.44832]
[1673861198734,0.07414742,1543.0,1542.9,19.44832]
[1673861200431,0.07814742,1543.0,1542.9,19.44832]
[1673861207620,0.07491656,1543.0,1542.9,19.44832]
[1673861209775,1.11891656,1543.0,1542.9,19.44832]
[1673861210009,0.07491656,1543.0,1542.9,19.44832]
[1673861216826,0.07491656,1543.0,1542.9,22.27722544]
[1673861217037,0.07491656,1543.0,1542.9,25.58821518]
[1673861217247,0.07491656,1543.0,1542.9,28.14003403]
[1673861218086,0.07491656,1543.0,1542.9,45.66413403]
[1673861219977,6.56e-06,1543.0,1542.9,45.66413403]
[1673861220188,6.56e-06,1543.0,1542.9,46.11231518]
[1673861223155,0.14711031,1543.7,1543.0,19.44229344]
[1673861223367,0.14711031,1543.7,1543.3,1.498]
[1673861223578,0.14711031,1543.7,1543.4,25.91644]
[1673861223816,0.14711031,1543.7,1543.4,26.14644]
[1673861228435,0.14711031,1543.7,1543.4,25.91644]
[1673861228956,0.14711031,1543.7,1543.4,28.508084]
[1673861230309,0.14711031,1543.7,1543.4,25.91644]
[1673861236983,0.14711031,1543.7,1543.4,19.43733]
[1673861238915,0.14711031,1543.7,1543.4,6.47911]
[1673861239131,1.498,1543.6,1543.4,6.47911]
[1673861239393,1.498,1543.6,1543.4,12.95831]
[1673861240005,1.96113103,1543.6,1543.4,12.95831]